[Event "Early-Titled-Tuesday-Blitz-March-12-2024"]
[Site "Chess.com"]
[Date "2024.03.12"]
[Round "1"]
[White "Koalaskakistis"]
[Black "Rikikits"]
[Result "1/2-1/2"]
[WhiteElo "2532"]
[BlackElo "2869"]
[TimeControl "180+1"]
[EndTime "8:09:07 PDT"]
[Termination "Game drawn by repetition"]

1. e4 {[%clk 0:02:58.9]} 1... c6 {[%clk 0:02:58.4]} 2. d4 {[%clk 0:02:55.9]}
2... d5 {[%clk 0:02:54.6]} 3. Nc3 {[%clk 0:02:52.5]} 3... dxe4 {[%clk
0:02:54.5]} 4. Nxe4 {[%clk 0:02:53.4]} 4... Nf6 {[%clk 0:02:54.9]} 5. Nxf6+
{[%clk 0:02:52.9]} 5... exf6 {[%clk 0:02:55.8]} 6. c3 {[%clk 0:02:48.9]} 6...
Bd6 {[%clk 0:02:55.3]} 7. Bd3 {[%clk 0:02:48.5]} 7... O-O {[%clk 0:02:55.3]} 8.
Qc2 {[%clk 0:02:48.1]} 8... Re8+ {[%clk 0:02:53]} 9. Ne2 {[%clk 0:02:48.7]} 9...
h5 {[%clk 0:02:52.9]} 10. Be3 {[%clk 0:02:48.9]} 10... Nd7 {[%clk 0:02:50]} 11.
O-O-O {[%clk 0:02:47.4]} 11... b5 {[%clk 0:02:46.6]} 12. d5 {[%clk 0:02:32.5]}
12... c5 {[%clk 0:02:38.8]} 13. Bxb5 {[%clk 0:02:32]} 13... Rb8 {[%clk
0:02:38.4]} 14. Bc6 {[%clk 0:02:12.8]} 14... Qa5 {[%clk 0:02:34]} 15. Qa4 {[%clk
0:01:56.5]} 15... Qb6 {[%clk 0:02:28.4]} 16. Rd2 {[%clk 0:01:52.1]} 16... Rxe3
{[%clk 0:02:26.6]} 17. fxe3 {[%clk 0:01:51.5]} 17... Ne5 {[%clk 0:02:26.9]} 18.
Nf4 {[%clk 0:01:42]} 18... Ba6 {[%clk 0:02:19.6]} 19. Rhd1 {[%clk 0:01:37.2]}
19... Nc4 {[%clk 0:02:15.9]} 20. b3 {[%clk 0:01:02]} 20... Nxd2 {[%clk 0:02:08]}
21. Kxd2 {[%clk 0:00:59.2]} 21... c4 {[%clk 0:02:04.7]} 22. b4 {[%clk
0:00:55.3]} 22... Bc8 {[%clk 0:01:56.9]} 23. h3 {[%clk 0:00:47.5]} 23... h4
{[%clk 0:01:42.1]} 24. Qc2 {[%clk 0:00:45]} 24... a5 {[%clk 0:01:37.7]} 25. a3
{[%clk 0:00:43]} 25... Qc7 {[%clk 0:01:17.3]} 26. Qe4 {[%clk 0:00:39.5]} 26...
Be5 {[%clk 0:01:11.9]} 27. Qxc4 {[%clk 0:00:36.4]} 27... axb4 {[%clk 0:01:09]}
28. axb4 {[%clk 0:00:37.3]} 28... Ra8 {[%clk 0:01:01.4]} 29. d6 {[%clk
0:00:32.7]} 29... Bxd6 {[%clk 0:00:54.9]} 30. Nd5 {[%clk 0:00:32.6]} 30... Ra2+
{[%clk 0:00:44]} 31. Qxa2 {[%clk 0:00:31.6]} 31... Qxc6 {[%clk 0:00:44.6]} 32.
Ke1 {[%clk 0:00:31.8]} 32... Be6 {[%clk 0:00:42]} 33. c4 {[%clk 0:00:15.1]}
33... f5 {[%clk 0:00:32.9]} 34. c5 {[%clk 0:00:15.5]} 34... Bf8 {[%clk
0:00:31.5]} 35. Qc4 {[%clk 0:00:15.9]} 35... Qa4 {[%clk 0:00:26.1]} 36. c6
{[%clk 0:00:14.2]} 36... Qa7 {[%clk 0:00:14.8]} 37. b5 {[%clk 0:00:12.3]} 37...
Qa5+ {[%clk 0:00:11.5]} 38. Ke2 {[%clk 0:00:12.6]} 38... Qa3 {[%clk 0:00:10.8]}
39. c7 {[%clk 0:00:12.4]} 39... Bc8 {[%clk 0:00:10.9]} 40. b6 {[%clk 0:00:11.8]}
40... Ba6 {[%clk 0:00:06.5]} 41. Rd4 {[%clk 0:00:10.2]} 41... Qa2+ {[%clk
0:00:06]} 42. Kd3 {[%clk 0:00:10]} 42... Qb1+ {[%clk 0:00:05.3]} 43. Kc3 {[%clk
0:00:09.9]} 43... Qc1+ {[%clk 0:00:04.7]} 44. Kd3 {[%clk 0:00:08.3]} 44... Qf1+
{[%clk 0:00:04.6]} 45. Kc3 {[%clk 0:00:08.6]} 45... Qe1+ {[%clk 0:00:04.2]} 46.
Kd3 {[%clk 0:00:09]} 46... Qd1+ {[%clk 0:00:04.3]} 47. Kc3 {[%clk 0:00:08.7]}
47... Qc1+ {[%clk 0:00:04.8]} 48. Kd3 {[%clk 0:00:09.2]} 48... Bxc4+ {[%clk
0:00:03.8]} 49. Rxc4 {[%clk 0:00:10.1]} 49... Qd1+ {[%clk 0:00:04.1]} 50. Kc3
{[%clk 0:00:10.4]} 50... Qxd5 {[%clk 0:00:04.6]} 51. c8=Q {[%clk 0:00:10.6]}
51... Qa5+ {[%clk 0:00:04.9]} 52. Kd3 {[%clk 0:00:09.7]} 52... Qxb6 {[%clk
0:00:05.5]} 53. Qe8 {[%clk 0:00:09.3]} 53... Qd6+ {[%clk 0:00:05.5]} 54. Kc2
{[%clk 0:00:09.4]} 54... g6 {[%clk 0:00:05.8]} 55. Rc8 {[%clk 0:00:09.9]} 55...
Kg7 {[%clk 0:00:06.2]} 56. Qc6 {[%clk 0:00:10.1]} 56... Qe5 {[%clk 0:00:05.3]}
57. Qc3 {[%clk 0:00:10.7]} 57... Bd6 {[%clk 0:00:04.9]} 58. Qxe5+ {[%clk
0:00:10.4]} 58... Bxe5 {[%clk 0:00:05.8]} 59. Kd3 {[%clk 0:00:11.2]} 59... Bg3
{[%clk 0:00:06.4]} 60. e4 {[%clk 0:00:11.5]} 60... fxe4+ {[%clk 0:00:07.3]} 61.
Kxe4 {[%clk 0:00:12.4]} 61... Kf6 {[%clk 0:00:08.1]} 62. Rc6+ {[%clk 0:00:12.4]}
62... Kg7 {[%clk 0:00:09]} 63. Kd5 {[%clk 0:00:12.5]} 63... Kf8 {[%clk
0:00:09.5]} 64. Ra6 {[%clk 0:00:13.1]} 64... Kg7 {[%clk 0:00:10.1]} 65. Ra7
{[%clk 0:00:12.8]} 65... Kf6 {[%clk 0:00:10.3]} 66. Ra6+ {[%clk 0:00:12.9]}
66... Kg7 {[%clk 0:00:10.7]} 67. Kc6 {[%clk 0:00:13.4]} 67... Kf6 {[%clk
0:00:10.4]} 68. Kd7+ {[%clk 0:00:13.1]} 68... Ke5 {[%clk 0:00:10.9]} 69. Ke7
{[%clk 0:00:13.5]} 69... g5 {[%clk 0:00:09.4]} 70. Kxf7 {[%clk 0:00:13.5]} 70...
Kf5 {[%clk 0:00:09.2]} 71. Ra5+ {[%clk 0:00:13.3]} 71... Kf4 {[%clk 0:00:09.3]}
72. Kg6 {[%clk 0:00:13.3]} 72... Ke3 {[%clk 0:00:09.7]} 73. Rf5 {[%clk
0:00:12.1]} 73... Bf4 {[%clk 0:00:09.5]} 74. Kh5 {[%clk 0:00:10.7]} 74... Kf2
{[%clk 0:00:09.9]} 75. Rxg5 {[%clk 0:00:08.3]} 75... Bg3 {[%clk 0:00:08.2]} 76.
Rb5 {[%clk 0:00:07]} 76... Kxg2 {[%clk 0:00:08.7]} 77. Kg4 {[%clk 0:00:07.9]}
77... Kf2 {[%clk 0:00:08.7]} 78. Rb2+ {[%clk 0:00:07.2]} 78... Ke3 {[%clk
0:00:08.7]} 79. Rg2 {[%clk 0:00:07]} 79... Ke4 {[%clk 0:00:09]} 80. Ra2 {[%clk
0:00:06]} 80... Ke5 {[%clk 0:00:09.3]} 81. Ra8 {[%clk 0:00:06.9]} 81... Ke6
{[%clk 0:00:09.5]} 82. Kg5 {[%clk 0:00:06.2]} 82... Ke5 {[%clk 0:00:09.9]} 83.
Ra6 {[%clk 0:00:07.1]} 83... Ke4 {[%clk 0:00:09.9]} 84. Ra4+ {[%clk 0:00:07.5]}
84... Ke5 {[%clk 0:00:10.3]} 85. Rg4 {[%clk 0:00:07]} 85... Ke6 {[%clk
0:00:10.6]} 86. Ra4 {[%clk 0:00:06.5]} 86... Ke5 {[%clk 0:00:11.1]} 87. Ra6
{[%clk 0:00:06.5]} 87... Ke4 {[%clk 0:00:11.2]} 88. Ra4+ {[%clk 0:00:06.3]}
88... Ke5 {[%clk 0:00:11.6]} 1/2-1/2

[Event "Early-Titled-Tuesday-Blitz-March-12-2024"]
[Site "Chess.com"]
[Date "2024.03.12"]
[Round "1"]
[White "GilbertoHernandezAmura"]
[Black "Hovik_Hayrapetyan"]
[Result "0-1"]
[WhiteElo "2467"]
[BlackElo "2842"]
[TimeControl "180+1"]
[EndTime "8:09:31 PDT"]
[Termination "Hovik_Hayrapetyan won by resignation"]

1. d4 {[%clk 0:02:54.6]} 1... Nf6 {[%clk 0:02:59.3]} 2. Bg5 {[%clk 0:02:49.8]}
2... d5 {[%clk 0:02:58.3]} 3. Bxf6 {[%clk 0:02:49.2]} 3... exf6 {[%clk
0:02:58.6]} 4. Nf3 {[%clk 0:02:49.3]} 4... Bd6 {[%clk 0:02:57.7]} 5. e3 {[%clk
0:02:49.3]} 5... O-O {[%clk 0:02:57.8]} 6. Bd3 {[%clk 0:02:48.8]} 6... f5 {[%clk
0:02:58]} 7. O-O {[%clk 0:02:40.1]} 7... g6 {[%clk 0:02:57]} 8. c4 {[%clk
0:02:39.5]} 8... dxc4 {[%clk 0:02:57.1]} 9. Bxc4 {[%clk 0:02:39.6]} 9... Nd7
{[%clk 0:02:57.5]} 10. Nc3 {[%clk 0:02:38.5]} 10... c6 {[%clk 0:02:44.2]} 11. a3
{[%clk 0:02:24.6]} 11... a5 {[%clk 0:02:39.2]} 12. Re1 {[%clk 0:02:18.9]} 12...
Nf6 {[%clk 0:02:38]} 13. d5 {[%clk 0:02:13.5]} 13... Bd7 {[%clk 0:02:28.6]} 14.
Qd4 {[%clk 0:02:10.8]} 14... Qe7 {[%clk 0:02:12.6]} 15. Rad1 {[%clk 0:01:56]}
15... Rfd8 {[%clk 0:02:08]} 16. e4 {[%clk 0:01:54]} 16... Bc5 {[%clk 0:01:41.7]}
17. d6 {[%clk 0:01:31.5]} 17... Qxd6 {[%clk 0:00:38.6]} 18. Qxd6 {[%clk
0:01:30.3]} 18... Bxd6 {[%clk 0:00:39.5]} 19. Rxd6 {[%clk 0:01:30.8]} 19... Nxe4
{[%clk 0:00:39.9]} 20. Nxe4 {[%clk 0:01:24.7]} 20... fxe4 {[%clk 0:00:40.8]} 21.
Ng5 {[%clk 0:01:18.8]} 21... Be8 {[%clk 0:00:40.8]} 22. Rxd8 {[%clk 0:01:14.2]}
22... Rxd8 {[%clk 0:00:41.7]} 23. Nxe4 {[%clk 0:01:14.9]} 23... Kg7 {[%clk
0:00:40.1]} 24. g4 {[%clk 0:01:09.1]} 24... b5 {[%clk 0:00:37]} 25. Bf1 {[%clk
0:01:03.3]} 25... Rd4 {[%clk 0:00:21.8]} 26. h3 {[%clk 0:01:01.1]} 26... f5
{[%clk 0:00:10.8]} 27. Nc5 {[%clk 0:00:57.1]} 27... Bf7 {[%clk 0:00:10]} 28.
gxf5 {[%clk 0:00:52]} 28... gxf5 {[%clk 0:00:10.9]} 29. Re7 {[%clk 0:00:38.2]}
29... Kf6 {[%clk 0:00:08.9]} 30. Rc7 {[%clk 0:00:38.3]} 30... Bd5 {[%clk
0:00:09.2]} 31. Bg2 {[%clk 0:00:37.3]} 31... Rd1+ {[%clk 0:00:08.8]} 32. Kh2
{[%clk 0:00:37.6]} 32... Rd2 {[%clk 0:00:08.3]} 33. Bxd5 {[%clk 0:00:36.8]}
33... cxd5 {[%clk 0:00:09.2]} 34. Kg2 {[%clk 0:00:33.4]} 34... Rxb2 {[%clk
0:00:09.2]} 35. Rd7 {[%clk 0:00:32]} 35... Ra2 {[%clk 0:00:06.2]} 36. Rb7 {[%clk
0:00:23.8]} 36... Rxa3 {[%clk 0:00:04.7]} 37. Rxb5 {[%clk 0:00:23.4]} 37... Ke5
{[%clk 0:00:05.3]} 38. Nb7 {[%clk 0:00:20.4]} 38... a4 {[%clk 0:00:05]} 39. Ra5
{[%clk 0:00:20.1]} 39... Ra1 {[%clk 0:00:03.8]} 40. Nc5 {[%clk 0:00:18.4]} 40...
a3 {[%clk 0:00:04.2]} 41. Kf3 {[%clk 0:00:16.7]} 41... Kd6 {[%clk 0:00:03.7]}
42. Nd3 {[%clk 0:00:16.3]} 42... Kc6 {[%clk 0:00:03.2]} 43. h4 {[%clk
0:00:15.4]} 43... d4 {[%clk 0:00:03.1]} 44. Rxf5 {[%clk 0:00:13.5]} 44... Kb6
{[%clk 0:00:02.9]} 45. Rf8 {[%clk 0:00:13.5]} 45... Kb7 {[%clk 0:00:03.2]} 46.
Rf7+ {[%clk 0:00:11.4]} 46... Kb6 {[%clk 0:00:03.6]} 47. Rf8 {[%clk 0:00:10.7]}
47... Kb7 {[%clk 0:00:03.8]} 48. Re8 {[%clk 0:00:11.5]} 48... a2 {[%clk
0:00:02.7]} 49. Re2 {[%clk 0:00:11.5]} 49... Rd1 {[%clk 0:00:03.1]} 50. Nc5+
{[%clk 0:00:10.8]} 50... Kc6 {[%clk 0:00:03]} 51. Rxa2 {[%clk 0:00:09]} 51...
Kxc5 {[%clk 0:00:03.9]} 52. Ra7 {[%clk 0:00:09.7]} 52... Kc4 {[%clk 0:00:03.8]}
53. Rxh7 {[%clk 0:00:09.7]} 53... Kd3 {[%clk 0:00:04.2]} 54. Rd7 {[%clk
0:00:10.1]} 54... Rh1 {[%clk 0:00:04.6]} 55. Rh7 {[%clk 0:00:09.9]} 55... Kc2
{[%clk 0:00:03.8]} 56. Ke4 {[%clk 0:00:08.3]} 56... d3 {[%clk 0:00:04]} 57. Ke3
{[%clk 0:00:05.7]} 57... Rh3+ {[%clk 0:00:03.3]} 58. f3 {[%clk 0:00:05.3]} 58...
d2 {[%clk 0:00:03.8]} 59. Rc7+ {[%clk 0:00:05.1]} 59... Kd1 {[%clk 0:00:04.2]}
60. Rd7 {[%clk 0:00:05.7]} 60... Rh2 {[%clk 0:00:04.9]} 61. h5 {[%clk
0:00:03.8]} 61... Ke1 {[%clk 0:00:04.9]} 62. Rxd2 {[%clk 0:00:04.1]} 62... Rxd2
{[%clk 0:00:04.6]} 63. Kf4 {[%clk 0:00:04.8]} 63... Rh2 {[%clk 0:00:04.5]} 64.
Kg5 {[%clk 0:00:05]} 64... Kf2 {[%clk 0:00:05.1]} 65. f4 {[%clk 0:00:04.5]}
65... Kf3 {[%clk 0:00:05.5]} 66. f5 {[%clk 0:00:04.3]} 66... Ke4 {[%clk
0:00:06.1]} 67. h6 {[%clk 0:00:04.4]} 67... Ke5 {[%clk 0:00:06.2]} 68. Kg6
{[%clk 0:00:04.1]} 68... Rg2+ {[%clk 0:00:06.2]} 69. Kf7 {[%clk 0:00:03.7]}
69... Kxf5 {[%clk 0:00:03.5]} 70. h7 {[%clk 0:00:04.3]} 70... Rh2 {[%clk
0:00:04]} 71. Kg8 {[%clk 0:00:04.1]} 71... Rg2+ {[%clk 0:00:03.1]} 72. Kf8
{[%clk 0:00:03.8]} 72... Rh2 {[%clk 0:00:03.3]} 73. Kg8 {[%clk 0:00:03.2]} 73...
Kg6 {[%clk 0:00:04.2]} 74. h8=Q {[%clk 0:00:03.2]} 74... Re2 {[%clk 0:00:04.3]}
75. Qg7+ {[%clk 0:00:02.9]} 75... Kf5 {[%clk 0:00:04.8]} 76. Qf7+ {[%clk
0:00:02.8]} 76... Ke4 {[%clk 0:00:05]} 77. Qg6+ {[%clk 0:00:03.1]} 77... Kf3
{[%clk 0:00:05.9]} 78. Kf7 {[%clk 0:00:03.1]} 78... Re4 {[%clk 0:00:05.6]} 79.
Qh5+ {[%clk 0:00:03.1]} 79... Ke3 {[%clk 0:00:05.3]} 80. Kf6 {[%clk 0:00:03.3]}
80... Rc4 {[%clk 0:00:04.8]} 81. Qh3+ {[%clk 0:00:03.2]} 81... Kd4 {[%clk
0:00:05.2]} 82. Qg2 {[%clk 0:00:02.5]} 82... Rc5 {[%clk 0:00:03.8]} 83. Ke6
{[%clk 0:00:02.8]} 83... Re5+ {[%clk 0:00:02.1]} 84. Kd6 {[%clk 0:00:03.1]}
84... Re3 {[%clk 0:00:03]} 85. Qe2 {[%clk 0:00:03]} 85... Rxe2 {[%clk
0:00:03.1]} 0-1

[Event "Early-Titled-Tuesday-Blitz-March-12-2024"]
[Site "Chess.com"]
[Date "2024.03.12"]
[Round "1"]
[White "AlexPapasimakopoulos"]
[Black "cthulhuuu"]
[Result "0-1"]
[WhiteElo "2710"]
[BlackElo "2394"]
[TimeControl "180+1"]
[EndTime "8:09:31 PDT"]
[Termination "cthulhuuu won by checkmate"]

1. d4 {[%clk 0:03:00.9]} 1... Nf6 {[%clk 0:02:59.9]} 2. c4 {[%clk 0:03:00.6]}
2... e5 {[%clk 0:03:00.3]} 3. dxe5 {[%clk 0:03:00.3]} 3... Ng4 {[%clk
0:03:00.9]} 4. e3 {[%clk 0:02:59]} 4... Nxe5 {[%clk 0:03:00.4]} 5. Nh3 {[%clk
0:02:56.7]} 5... d5 {[%clk 0:03:00.5]} 6. Qxd5 {[%clk 0:02:42.3]} 6... Qe7
{[%clk 0:03:00.7]} 7. Nf4 {[%clk 0:02:41.6]} 7... g5 {[%clk 0:02:58.8]} 8. Nh5
{[%clk 0:02:31.1]} 8... Nbc6 {[%clk 0:02:58.6]} 9. Nc3 {[%clk 0:02:18.2]} 9...
Nb4 {[%clk 0:02:22.6]} 10. Qd1 {[%clk 0:02:14.9]} 10... Bg4 {[%clk 0:02:15.1]}
11. Be2 {[%clk 0:01:42.5]} 11... Nbd3+ {[%clk 0:00:38.5]} 12. Kf1 {[%clk
0:01:41.2]} 12... Bxh5 {[%clk 0:00:38.9]} 13. Bxh5 {[%clk 0:01:36.3]} 13... g4
{[%clk 0:00:39.6]} 14. Bxg4 {[%clk 0:01:29.2]} 14... Qh4 {[%clk 0:00:37.3]} 15.
g3 {[%clk 0:01:05.7]} 15... Qxg4 {[%clk 0:00:36.9]} 16. Qxg4 {[%clk 0:01:05.2]}
16... Nxg4 {[%clk 0:00:37.8]} 17. Nd1 {[%clk 0:01:04.1]} 17... O-O-O {[%clk
0:00:30.6]} 18. Ke2 {[%clk 0:01:01.4]} 18... Bg7 {[%clk 0:00:23.1]} 19. h3
{[%clk 0:01:01.8]} 19... Nge5 {[%clk 0:00:21.6]} 20. Rb1 {[%clk 0:00:54]} 20...
Nxc4 {[%clk 0:00:20.9]} 21. b3 {[%clk 0:00:53.9]} 21... Nxc1+ {[%clk 0:00:21]}
22. Rxc1 {[%clk 0:00:54.1]} 22... Nb6 {[%clk 0:00:14.8]} 23. Rc2 {[%clk
0:00:50.7]} 23... c6 {[%clk 0:00:14.5]} 24. Nb2 {[%clk 0:00:50.7]} 24... Bxb2
{[%clk 0:00:14.5]} 25. Rxb2 {[%clk 0:00:51.6]} 25... Rd7 {[%clk 0:00:14.9]} 26.
g4 {[%clk 0:00:48.9]} 26... Rhd8 {[%clk 0:00:15.2]} 27. g5 {[%clk 0:00:48]}
27... Nd5 {[%clk 0:00:15.6]} 28. Rc2 {[%clk 0:00:41.1]} 28... Nb4 {[%clk
0:00:15.6]} 29. Rb2 {[%clk 0:00:41.4]} 29... Nd3 {[%clk 0:00:15.7]} 30. Rc2
{[%clk 0:00:41.9]} 30... Nb4 {[%clk 0:00:14.5]} 31. Rb2 {[%clk 0:00:42.2]} 31...
Nd5 {[%clk 0:00:11.9]} 32. Rc1 {[%clk 0:00:36.9]} 32... Kc7 {[%clk 0:00:10.9]}
33. h4 {[%clk 0:00:36.1]} 33... b5 {[%clk 0:00:11]} 34. a3 {[%clk 0:00:33.8]}
34... a5 {[%clk 0:00:10.1]} 35. Rbc2 {[%clk 0:00:34]} 35... Rd6 {[%clk
0:00:10.7]} 36. Rc5 {[%clk 0:00:31.3]} 36... Kb6 {[%clk 0:00:10.8]} 37. Kf3
{[%clk 0:00:26.6]} 37... b4 {[%clk 0:00:10.2]} 38. axb4 {[%clk 0:00:27.2]} 38...
axb4 {[%clk 0:00:11.1]} 39. R5c4 {[%clk 0:00:21.5]} 39... f6 {[%clk 0:00:11.3]}
40. Rg1 {[%clk 0:00:18]} 40... fxg5 {[%clk 0:00:09.9]} 41. hxg5 {[%clk
0:00:18.9]} 41... Rf8+ {[%clk 0:00:08.4]} 42. Ke2 {[%clk 0:00:19]} 42... Nc3+
{[%clk 0:00:08.2]} 43. Kf1 {[%clk 0:00:15.3]} 43... Rd1+ {[%clk 0:00:08.6]} 44.
Kg2 {[%clk 0:00:15.7]} 44... Rxg1+ {[%clk 0:00:08.7]} 45. Kxg1 {[%clk
0:00:16.6]} 45... c5 {[%clk 0:00:08.7]} 46. Rh4 {[%clk 0:00:14.5]} 46... Rg8
{[%clk 0:00:08.9]} 47. f4 {[%clk 0:00:14.5]} 47... Rg7 {[%clk 0:00:08]} 48. Kf2
{[%clk 0:00:12.9]} 48... c4 {[%clk 0:00:07.3]} 49. Rh6+ {[%clk 0:00:08.4]} 49...
Rg6 {[%clk 0:00:06.4]} 50. Rxh7 {[%clk 0:00:03.3]} 50... cxb3 {[%clk 0:00:06.7]}
51. Rh6 {[%clk 0:00:01.6]} 51... Rxh6 {[%clk 0:00:02]} 52. gxh6 {[%clk
0:00:02.5]} 52... b2 {[%clk 0:00:02.6]} 53. h7 {[%clk 0:00:02.5]} 53... b1=Q
{[%clk 0:00:03.1]} 54. h8=Q {[%clk 0:00:03.1]} 54... Qc2+ {[%clk 0:00:03.4]} 55.
Kf3 {[%clk 0:00:03.1]} 55... Qd1+ {[%clk 0:00:03.7]} 56. Kg3 {[%clk 0:00:03.1]}
56... Qg1+ {[%clk 0:00:02]} 57. Kf3 {[%clk 0:00:03.5]} 57... Qf1+ {[%clk
0:00:02.4]} 58. Kg3 {[%clk 0:00:03.9]} 58... Qc4 {[%clk 0:00:02.7]} 59. f5
{[%clk 0:00:03.1]} 59... Kb5 {[%clk 0:00:03.6]} 60. Qb8+ {[%clk 0:00:01.8]}
60... Ka4 {[%clk 0:00:03.7]} 61. f6 {[%clk 0:00:02.2]} 61... Ne4+ {[%clk
0:00:03.9]} 62. Kf4 {[%clk 0:00:02.3]} 62... Nc5+ {[%clk 0:00:04.1]} 63. Kg5
{[%clk 0:00:02.1]} 63... Qd5+ {[%clk 0:00:03.3]} 64. Kg6 {[%clk 0:00:02.4]}
64... Qe4+ {[%clk 0:00:03.3]} 65. Kg7 {[%clk 0:00:03]} 65... Qc6 {[%clk
0:00:02.3]} 66. f7 {[%clk 0:00:02.8]} 66... Qd7 {[%clk 0:00:02.4]} 67. Qa8+
{[%clk 0:00:02.1]} 67... Kb3 {[%clk 0:00:02.9]} 68. Qf3 {[%clk 0:00:02.4]} 68...
Ne6+ {[%clk 0:00:03.3]} 69. Kh6 {[%clk 0:00:02.8]} 69... Qd8 {[%clk 0:00:03.2]}
70. e4+ {[%clk 0:00:02.5]} 70... Ka4 {[%clk 0:00:02.4]} 71. Qg3 {[%clk
0:00:02.7]} 71... Qf8+ {[%clk 0:00:03.3]} 72. Kg6 {[%clk 0:00:02.6]} 72... Nd8
{[%clk 0:00:03.7]} 73. Kg5 {[%clk 0:00:02.6]} 73... Kb5 {[%clk 0:00:04.2]} 74.
Qf4 {[%clk 0:00:02.9]} 74... Qg7+ {[%clk 0:00:04.6]} 75. Kh4 {[%clk 0:00:02.7]}
75... Qh7+ {[%clk 0:00:04.8]} 76. Kg3 {[%clk 0:00:02.8]} 76... Qg7+ {[%clk
0:00:04.9]} 77. Kh2 {[%clk 0:00:03.4]} 77... Qxf7 {[%clk 0:00:05.2]} 78. Qb8+
{[%clk 0:00:04]} 78... Nb7 {[%clk 0:00:04.5]} 79. e5 {[%clk 0:00:04]} 79... b3
{[%clk 0:00:04.7]} 80. Qc7 {[%clk 0:00:04.4]} 80... Qxc7 {[%clk 0:00:04.8]} 81.
Kg2 {[%clk 0:00:03.3]} 81... Qxe5 {[%clk 0:00:05]} 82. Kf3 {[%clk 0:00:03.5]}
82... b2 {[%clk 0:00:05.4]} 83. Kg2 {[%clk 0:00:03.5]} 83... b1=Q {[%clk
0:00:05.9]} 84. Kh3 {[%clk 0:00:03.6]} 84... Qbf5+ {[%clk 0:00:05.2]} 85. Kh4
{[%clk 0:00:03.8]} 85... Qef6+ {[%clk 0:00:05.4]} 86. Kg3 {[%clk 0:00:03.6]}
86... Q5g5+ {[%clk 0:00:05.9]} 87. Kh3 {[%clk 0:00:04.5]} 87... Qfh6# {[%clk
0:00:06.1]} 0-1

[Event "Early-Titled-Tuesday-Blitz-March-12-2024"]
[Site "Chess.com"]
[Date "2024.03.12"]
[Round "2"]
[White "bobo_panda"]
[Black "Er_is_geen_hoop_meer"]
[Result "1-0"]
[WhiteElo "2296"]
[BlackElo "2520"]
[TimeControl "180+1"]
[EndTime "8:11:32 PDT"]
[Termination "bobo_panda won by resignation"]

1. e4 {[%clk 0:02:59.6]} 1... c6 {[%clk 0:02:59.6]} 2. Nf3 {[%clk 0:03:00]} 2...
d5 {[%clk 0:02:59]} 3. exd5 {[%clk 0:03:00.3]} 3... cxd5 {[%clk 0:02:59.9]} 4.
d4 {[%clk 0:03:00.4]} 4... Nc6 {[%clk 0:03:00.6]} 5. Bb5 {[%clk 0:03:00]} 5...
Bg4 {[%clk 0:03:00.6]} 6. h3 {[%clk 0:02:59.7]} 6... Bxf3 {[%clk 0:03:00.7]} 7.
Qxf3 {[%clk 0:03:00.6]} 7... e6 {[%clk 0:03:01.1]} 8. c3 {[%clk 0:03:00.4]} 8...
Bd6 {[%clk 0:02:59.2]} 9. O-O {[%clk 0:03:00]} 9... Ne7 {[%clk 0:02:59.5]} 10.
Nd2 {[%clk 0:02:59]} 10... O-O {[%clk 0:02:59.6]} 11. Qe2 {[%clk 0:02:58.8]}
11... a6 {[%clk 0:02:48]} 12. Bd3 {[%clk 0:02:57.7]} 12... b5 {[%clk 0:02:48.2]}
13. a3 {[%clk 0:02:57.4]} 13... Nf5 {[%clk 0:02:43.9]} 14. Nf3 {[%clk
0:02:53.2]} 14... f6 {[%clk 0:02:42.6]} 15. Qxe6+ {[%clk 0:02:50.9]} 1-0

[Event "Early-Titled-Tuesday-Blitz-March-12-2024"]
[Site "Chess.com"]
[Date "2024.03.12"]
[Round "2"]
[White "crazyluzhinTh3"]
[Black "HanSchut"]
[Result "1-0"]
[WhiteElo "2552"]
[BlackElo "2307"]
[TimeControl "180+1"]
[EndTime "8:11:37 PDT"]
[Termination "crazyluzhinTh3 won by resignation"]

1. e4 {[%clk 0:03:00.9]} 1... c5 {[%clk 0:02:58.7]} 2. Nf3 {[%clk 0:03:01.2]}
2... d6 {[%clk 0:02:57.4]} 3. Bc4 {[%clk 0:03:01.2]} 3... Nf6 {[%clk 0:02:55.4]}
4. Qe2 {[%clk 0:03:01.8]} 4... e6 {[%clk 0:02:55.2]} 5. Bb3 {[%clk 0:03:01.8]}
5... Be7 {[%clk 0:02:55.1]} 6. O-O {[%clk 0:03:02.5]} 6... O-O {[%clk 0:02:54]}
7. c3 {[%clk 0:03:03.2]} 7... Nc6 {[%clk 0:02:54.2]} 8. d4 {[%clk 0:03:03.4]}
8... cxd4 {[%clk 0:02:54.8]} 9. cxd4 {[%clk 0:03:04.3]} 9... d5 {[%clk
0:02:55.2]} 10. e5 {[%clk 0:03:04.9]} 10... Ne4 {[%clk 0:02:55.6]} 11. Nc3
{[%clk 0:03:05.8]} 11... Nxc3 {[%clk 0:02:55.1]} 12. bxc3 {[%clk 0:03:06.7]}
12... Bd7 {[%clk 0:02:50.2]} 13. Bc2 {[%clk 0:03:07.2]} 13... Na5 {[%clk
0:02:44.1]} 14. Qd3 {[%clk 0:03:07.1]} 14... g6 {[%clk 0:02:44.5]} 15. Qe3
{[%clk 0:03:07.7]} 15... Nc4 {[%clk 0:02:42.1]} 16. Qh6 {[%clk 0:03:07.2]} 16...
f5 {[%clk 0:02:40.1]} 17. Ng5 {[%clk 0:03:00.7]} 17... Rf7 {[%clk 0:02:37.2]}
18. Nxf7 {[%clk 0:03:00]} 18... Kxf7 {[%clk 0:02:38.1]} 19. Qxh7+ {[%clk
0:03:00.5]} 19... Kf8 {[%clk 0:02:36.7]} 20. Bh6+ {[%clk 0:02:58.7]} 1-0

[Event "Early-Titled-Tuesday-Blitz-March-12-2024"]
[Site "Chess.com"]
[Date "2024.03.12"]
[Round "2"]
[White "enriquebutti"]
[Black "QuintilianoR"]
[Result "0-1"]
[WhiteElo "2208"]
[BlackElo "2737"]
[TimeControl "180+1"]
[EndTime "8:12:59 PDT"]
[Termination "QuintilianoR won by resignation"]

1. d4 {[%clk 0:03:00]} 1... Nf6 {[%clk 0:02:59.3]} 2. Nf3 {[%clk 0:02:59.1]}
2... e6 {[%clk 0:02:59.5]} 3. e3 {[%clk 0:02:58.3]} 3... c5 {[%clk 0:02:58.6]}
4. Bd3 {[%clk 0:02:57.7]} 4... b6 {[%clk 0:02:59]} 5. O-O {[%clk 0:02:56.7]}
5... Bb7 {[%clk 0:02:59.6]} 6. b3 {[%clk 0:02:56.8]} 6... Nc6 {[%clk 0:02:57.6]}
7. a3 {[%clk 0:02:53.6]} 7... d5 {[%clk 0:02:56.2]} 8. Bb2 {[%clk 0:02:53]} 8...
Bd6 {[%clk 0:02:56.2]} 9. Nbd2 {[%clk 0:02:51.2]} 9... O-O {[%clk 0:02:56.5]}
10. Ne5 {[%clk 0:02:46.7]} 10... Rc8 {[%clk 0:02:56]} 11. f4 {[%clk 0:02:46]}
11... Ne7 {[%clk 0:02:55.4]} 12. c4 {[%clk 0:02:38.6]} 12... cxd4 {[%clk
0:02:51.8]} 13. exd4 {[%clk 0:02:37.8]} 13... Nf5 {[%clk 0:02:48]} 14. Qe2
{[%clk 0:02:32.8]} 14... Be7 {[%clk 0:02:45.9]} 15. cxd5 {[%clk 0:02:12.2]}
15... Nxd5 {[%clk 0:02:34.2]} 16. Rf3 {[%clk 0:02:06.7]} 16... Nc3 {[%clk
0:02:25.8]} 17. Bxc3 {[%clk 0:02:00.3]} 17... Bxf3 {[%clk 0:02:25.2]} 18. Ndxf3
{[%clk 0:01:53.9]} 18... Rxc3 {[%clk 0:02:25.2]} 0-1